[Event "*** Titled Tuesday Blitz"]
[Site "Chess.com"]
[Date "2020.11.03"]
[Round "3"]
[White "amintabatabaei"]
[Black "grunbergmihai"]
[Result "1-0"]
[WhiteElo "2950"]
[BlackElo "2469"]
[TimeControl "180+1"]
[EndTime "10:29:57 PST"]
[Termination "amintabatabaei won by resignation"]

1. a3 {[%clk 0:03:00.9]} 1... e5 {[%clk 0:02:57.7]} 2. e3 {[%clk 0:02:58.6]}
2... d5 {[%clk 0:02:57.4]} 3. d4 {[%clk 0:02:58.1]} 3... exd4 {[%clk 0:02:50.1]}
4. exd4 {[%clk 0:02:59]} 4... Nf6 {[%clk 0:02:50.5]} 5. Bd3 {[%clk 0:02:53.6]}
5... Bd6 {[%clk 0:02:50.1]} 6. Ne2 {[%clk 0:02:52.3]} 6... h6 {[%clk 0:02:46]}
7. Nbc3 {[%clk 0:02:50.2]} 7... c6 {[%clk 0:02:44.7]} 8. Bf4 {[%clk 0:02:49.9]}
8... O-O {[%clk 0:02:43.8]} 9. Qd2 {[%clk 0:02:47.9]} 9... Re8 {[%clk
0:02:41.5]} 10. O-O-O {[%clk 0:02:47.4]} 10... b5 {[%clk 0:02:32.5]} 11. Bxd6
{[%clk 0:02:46]} 11... Qxd6 {[%clk 0:02:32.2]} 12. Qf4 {[%clk 0:02:46.9]} 12...
Qxf4+ {[%clk 0:02:26.5]} 13. Nxf4 {[%clk 0:02:47.8]} 13... Nbd7 {[%clk
0:02:22.6]} 14. Rde1 {[%clk 0:02:47]} 14... Bb7 {[%clk 0:02:19.2]} 15. f3 {[%clk
0:02:47]} 15... Rxe1+ {[%clk 0:02:14.8]} 16. Rxe1 {[%clk 0:02:47.9]} 16... Re8
{[%clk 0:02:15.1]} 17. Kd2 {[%clk 0:02:45.1]} 17... Rxe1 {[%clk 0:02:14.1]} 18.
Kxe1 {[%clk 0:02:46]} 18... Kf8 {[%clk 0:02:12]} 19. g4 {[%clk 0:02:46.2]} 19...
Ke7 {[%clk 0:02:10]} 20. h4 {[%clk 0:02:46.5]} 20... Nf8 {[%clk 0:02:06.6]} 21.
Nce2 {[%clk 0:02:46.5]} 21... Ne6 {[%clk 0:02:00.5]} 22. Nxe6 {[%clk 0:02:46.6]}
22... Kxe6 {[%clk 0:01:55.4]} 23. Nf4+ {[%clk 0:02:46.9]} 23... Ke7 {[%clk
0:01:49.4]} 24. g5 {[%clk 0:02:47.1]} 24... hxg5 {[%clk 0:01:49.3]} 25. hxg5
{[%clk 0:02:48]} 25... Nd7 {[%clk 0:01:48.9]} 26. Bf5 {[%clk 0:02:48.6]} 26...
Nb6 {[%clk 0:01:43.6]} 27. Nd3 {[%clk 0:02:48.9]} 27... f6 {[%clk 0:01:35.2]}
28. gxf6+ {[%clk 0:02:38.4]} 28... gxf6 {[%clk 0:01:35.2]} 29. Kf2 {[%clk
0:02:32.5]} 29... Bc8 {[%clk 0:01:34]} 30. Bxc8 {[%clk 0:02:32.6]} 30... Nxc8
{[%clk 0:01:33.7]} 31. Kg3 {[%clk 0:02:33.5]} 31... Nd6 {[%clk 0:01:33]} 32. Kg4
{[%clk 0:02:30.9]} 32... a5 {[%clk 0:01:28.5]} 33. b3 {[%clk 0:02:26.5]} 33...
Nf7 {[%clk 0:01:12.3]} 34. Kf5 {[%clk 0:02:24.7]} 34... Nd6+ {[%clk 0:01:06.1]}
35. Kg6 {[%clk 0:02:23]} 35... Nb7 {[%clk 0:01:01.8]} 36. Nf2 {[%clk 0:02:22.5]}
36... Nd8 {[%clk 0:00:47.8]} 37. Nd3 {[%clk 0:02:10.6]} 37... Ne6 {[%clk
0:00:46.9]} 38. c3 {[%clk 0:02:11]} 38... Nf8+ {[%clk 0:00:41.5]} 39. Kf5 {[%clk
0:02:10.5]} 39... Ne6 {[%clk 0:00:40.4]} 40. Nf4 {[%clk 0:01:53.2]} 40... Nxf4
{[%clk 0:00:34.6]} 41. Kxf4 {[%clk 0:01:54.1]} 41... Ke6 {[%clk 0:00:32.3]} 42.
Kg4 {[%clk 0:01:40.4]} 42... Kd6 {[%clk 0:00:25.2]} 43. Kf5 {[%clk 0:01:40.1]}
43... Ke7 {[%clk 0:00:24.9]} 44. Kg6 {[%clk 0:01:38.4]} 44... c5 {[%clk
0:00:19.6]} 45. b4 {[%clk 0:01:35.4]} 45... axb4 {[%clk 0:00:16.6]} 46. axb4
{[%clk 0:01:34.9]} 46... cxd4 {[%clk 0:00:14.1]} 47. cxd4 {[%clk 0:01:35.8]}
47... Ke6 {[%clk 0:00:14.2]} 48. f4 {[%clk 0:01:35.7]} 1-0

[Event "*** Titled Tuesday Blitz"]
[Site "Chess.com"]
[Date "2020.11.03"]
[Round "3"]
[White "AlexeiShirov"]
[Black "Skatchkov_V"]
[Result "1-0"]
[WhiteElo "2791"]
[BlackElo "2485"]
[TimeControl "180+1"]
[EndTime "10:29:59 PST"]
[Termination "AlexeiShirov won by resignation"]

1. e4 {[%clk 0:03:00.9]} 1... e5 {[%clk 0:02:59.6]} 2. Nf3 {[%clk 0:03:00.3]}
2... Nf6 {[%clk 0:02:59.9]} 3. d4 {[%clk 0:02:57.2]} 3... Nxe4 {[%clk
0:02:59.8]} 4. Bd3 {[%clk 0:02:55.6]} 4... Nc6 {[%clk 0:03:00.3]} 5. Bxe4 {[%clk
0:02:47]} 5... d5 {[%clk 0:03:00.1]} 6. Bg5 {[%clk 0:02:42.6]} 6... f6 {[%clk
0:03:00.4]} 7. Bd3 {[%clk 0:02:34.4]} 7... e4 {[%clk 0:02:56.9]} 8. c4 {[%clk
0:02:32.9]} 8... exd3 {[%clk 0:02:35.5]} 9. Bf4 {[%clk 0:02:07.1]} 9... dxc4
{[%clk 0:02:33.2]} 10. O-O {[%clk 0:02:05.3]} 10... Nxd4 {[%clk 0:02:10.3]} 11.
Re1+ {[%clk 0:01:57.6]} 11... Ne2+ {[%clk 0:02:09.4]} 12. Kh1 {[%clk 0:01:48.2]}
12... Be7 {[%clk 0:02:07.6]} 13. Qa4+ {[%clk 0:01:47]} 13... c6 {[%clk
0:01:45.8]} 14. Qxc4 {[%clk 0:01:46.1]} 14... Qd5 {[%clk 0:01:13.4]} 15. Qa4
{[%clk 0:01:33.8]} 15... b5 {[%clk 0:01:07]} 16. Qa5 {[%clk 0:01:33.2]} 16...
Nxf4 {[%clk 0:01:03.7]} 17. Rxe7+ {[%clk 0:01:31.4]} 17... Kxe7 {[%clk 0:01:03]}
18. Nc3 {[%clk 0:01:30.9]} 18... Qd6 {[%clk 0:00:54.7]} 19. Ne4 {[%clk
0:01:28.8]} 19... Qd8 {[%clk 0:00:43.7]} 20. Qb4+ {[%clk 0:01:27.9]} 20... Kf7
{[%clk 0:00:44.1]} 21. Nd6+ {[%clk 0:01:27.4]} 21... Kg8 {[%clk 0:00:24.7]} 22.
Qxf4 {[%clk 0:01:25.7]} 22... Be6 {[%clk 0:00:24.8]} 23. Re1 {[%clk 0:01:22.3]}
23... Qd7 {[%clk 0:00:25]} 24. Nd4 {[%clk 0:01:20.1]} 24... Bd5 {[%clk
0:00:24.2]} 25. N4f5 {[%clk 0:01:17.3]} 25... Kf8 {[%clk 0:00:14.5]} 26. Qb4
{[%clk 0:01:08.3]} 26... a5 {[%clk 0:00:09.7]} 27. Qc5 {[%clk 0:01:07.5]} 27...
g6 {[%clk 0:00:05.9]} 28. Ne4+ {[%clk 0:00:51.7]} 28... Kg8 {[%clk 0:00:03.7]}
29. Nxf6+ {[%clk 0:00:49.1]} 1-0

[Event "*** Titled Tuesday Blitz"]
[Site "Chess.com"]
[Date "2020.11.03"]
[Round "3"]
[White "Misticpikachu"]
[Black "BabyFacedAssasin"]
[Result "1/2-1/2"]
[WhiteElo "2496"]
[BlackElo "2253"]
[TimeControl "180+1"]
[EndTime "10:30:01 PST"]
[Termination "Game drawn by repetition"]

1. c4 {[%clk 0:03:00.9]} 1... g6 {[%clk 0:02:58.6]} 2. Nc3 {[%clk 0:03:00.4]}
2... Bg7 {[%clk 0:02:58.2]} 3. d4 {[%clk 0:03:01]} 3... c5 {[%clk 0:02:57.4]} 4.
Nf3 {[%clk 0:03:00.9]} 4... cxd4 {[%clk 0:02:56]} 5. Nxd4 {[%clk 0:03:01.8]}
5... Nc6 {[%clk 0:02:55.6]} 6. Nxc6 {[%clk 0:02:57.2]} 6... dxc6 {[%clk
0:02:54.8]} 7. Qxd8+ {[%clk 0:02:55.4]} 7... Kxd8 {[%clk 0:02:55.7]} 8. g3
{[%clk 0:02:54.3]} 8... Bxc3+ {[%clk 0:02:50.9]} 9. bxc3 {[%clk 0:02:53.9]} 9...
Nf6 {[%clk 0:02:50.7]} 10. Bg2 {[%clk 0:02:45.3]} 10... Be6 {[%clk 0:02:46.1]}
11. c5 {[%clk 0:02:37.7]} 11... Bd5 {[%clk 0:02:20.8]} 12. O-O {[%clk 0:02:34]}
12... Bxg2 {[%clk 0:02:20]} 13. Kxg2 {[%clk 0:02:34.9]} 13... e5 {[%clk
0:02:11.2]} 14. Bg5 {[%clk 0:02:30.2]} 14... Ke7 {[%clk 0:02:10.1]} 15. Rab1
{[%clk 0:02:30.2]} 15... Rab8 {[%clk 0:02:05.8]} 16. Rfd1 {[%clk 0:02:23]} 16...
h6 {[%clk 0:01:52.3]} 17. Bxf6+ {[%clk 0:02:17.9]} 17... Kxf6 {[%clk 0:01:53.2]}
18. Rd7 {[%clk 0:02:16.7]} 18... b6 {[%clk 0:01:48.8]} 19. Rd6+ {[%clk
0:02:02.8]} 19... Ke7 {[%clk 0:01:39.4]} 20. Rxc6 {[%clk 0:02:02.6]} 20... bxc5
{[%clk 0:01:38.4]} 21. Rxb8 {[%clk 0:01:55.5]} 21... Rxb8 {[%clk 0:01:37.7]} 22.
Rxc5 {[%clk 0:01:56.4]} 22... Ke6 {[%clk 0:01:33.2]} 23. Ra5 {[%clk 0:01:49.2]}
23... Rc8 {[%clk 0:01:29.6]} 24. e4 {[%clk 0:01:22.6]} 24... Rxc3 {[%clk
0:01:08.1]} 25. Ra6+ {[%clk 0:01:21.1]} 25... Ke7 {[%clk 0:01:07.6]} 26. Rxa7+
{[%clk 0:01:21.3]} 26... Kf6 {[%clk 0:01:07.2]} 27. Ra6+ {[%clk 0:01:13.7]}
27... Kg7 {[%clk 0:01:05.8]} 28. h4 {[%clk 0:00:56.9]} 28... h5 {[%clk
0:01:04.1]} 29. a4 {[%clk 0:00:45.5]} 29... Ra3 {[%clk 0:01:03.5]} 30. Ra8
{[%clk 0:00:37.3]} 30... f5 {[%clk 0:00:57.7]} 31. exf5 {[%clk 0:00:35.9]} 31...
gxf5 {[%clk 0:00:57.6]} 32. Ra5 {[%clk 0:00:35]} 32... Kf6 {[%clk 0:00:56.1]}
33. Ra6+ {[%clk 0:00:35.3]} 33... Kg7 {[%clk 0:00:55.4]} 34. a5 {[%clk
0:00:34.2]} 34... e4 {[%clk 0:00:55]} 35. Ra7+ {[%clk 0:00:32.5]} 35... Kf6
{[%clk 0:00:52.9]} 36. a6 {[%clk 0:00:27.8]} 36... Ra2 {[%clk 0:00:50.3]} 37.
Kf1 {[%clk 0:00:27.6]} 37... Ra1+ {[%clk 0:00:49.9]} 38. Ke2 {[%clk 0:00:28]}
38... Ra2+ {[%clk 0:00:50.2]} 39. Kf1 {[%clk 0:00:26.8]} 39... Ra1+ {[%clk
0:00:50.3]} 40. Kg2 {[%clk 0:00:27.1]} 40... Ra2 {[%clk 0:00:50.8]} 41. Kf1
{[%clk 0:00:13.9]} 1/2-1/2

[Event "*** Titled Tuesday Blitz"]
[Site "Chess.com"]
[Date "2020.11.03"]
[Round "3"]
[White "OldweakGM"]
[Black "PavelShkapenko"]
[Result "1-0"]
[WhiteElo "2875"]
[BlackElo "2644"]
[TimeControl "180+1"]
[EndTime "10:30:02 PST"]
[Termination "OldweakGM won by resignation"]

1. Nf3 {[%clk 0:02:56.2]} 1... Nf6 {[%clk 0:02:59.4]} 2. d4 {[%clk 0:02:56.4]}
2... e6 {[%clk 0:02:59.2]} 3. Bf4 {[%clk 0:02:56.3]} 3... c5 {[%clk 0:02:58.6]}
4. e3 {[%clk 0:02:56.6]} 4... b6 {[%clk 0:02:57.1]} 5. c3 {[%clk 0:02:56.9]}
5... Bb7 {[%clk 0:02:56.7]} 6. Nbd2 {[%clk 0:02:57.5]} 6... cxd4 {[%clk
0:02:56.7]} 7. exd4 {[%clk 0:02:57.3]} 7... Be7 {[%clk 0:02:56.9]} 8. Bd3 {[%clk
0:02:57.6]} 8... d6 {[%clk 0:02:55.6]} 9. h3 {[%clk 0:02:57.3]} 9... a6 {[%clk
0:02:53.1]} 10. O-O {[%clk 0:02:57.3]} 10... Nbd7 {[%clk 0:02:51.6]} 11. a4
{[%clk 0:02:57.8]} 11... O-O {[%clk 0:02:50.5]} 12. Re1 {[%clk 0:02:58.4]} 12...
Re8 {[%clk 0:02:50.7]} 13. Nc4 {[%clk 0:02:55.6]} 13... Qc7 {[%clk 0:02:50.4]}
14. Bh2 {[%clk 0:02:55.4]} 14... Bf8 {[%clk 0:02:50]} 15. Qe2 {[%clk 0:02:52.2]}
15... h6 {[%clk 0:02:33.4]} 16. Rac1 {[%clk 0:02:45.7]} 16... Bc6 {[%clk
0:02:06.7]} 17. Ra1 {[%clk 0:02:44.9]} 17... Bb7 {[%clk 0:02:06.6]} 18. Nfd2
{[%clk 0:02:41.4]} 18... Qc6 {[%clk 0:02:00.8]} 19. Qf1 {[%clk 0:02:37.8]} 19...
Qc7 {[%clk 0:01:39.8]} 20. Ne3 {[%clk 0:02:34.2]} 20... Bc6 {[%clk 0:01:38.6]}
21. Bxa6 {[%clk 0:02:31.7]} 21... Nd5 {[%clk 0:01:32.9]} 22. Nxd5 {[%clk
0:02:29.9]} 22... Bxd5 {[%clk 0:01:33]} 23. Bb5 {[%clk 0:02:30.2]} 23... Bc6
{[%clk 0:01:31.3]} 24. Qc4 {[%clk 0:02:27.8]} 24... Rac8 {[%clk 0:01:30]} 25.
Bxc6 {[%clk 0:02:23.9]} 25... Qxc6 {[%clk 0:01:30.2]} 26. Qxc6 {[%clk
0:02:24.4]} 26... Rxc6 {[%clk 0:01:30.8]} 27. d5 {[%clk 0:02:20.3]} 27... Rcc8
{[%clk 0:01:27.7]} 28. dxe6 {[%clk 0:02:18.3]} 28... fxe6 {[%clk 0:01:26.5]} 29.
Nb3 {[%clk 0:02:11.3]} 29... e5 {[%clk 0:01:22.1]} 30. Red1 {[%clk 0:02:11.7]}
30... Nf6 {[%clk 0:01:19.4]} 31. Re1 {[%clk 0:02:07]} 31... Rb8 {[%clk 0:01:15]}
32. Nd2 {[%clk 0:02:06.4]} 32... Rec8 {[%clk 0:01:11.1]} 33. Ne4 {[%clk
0:02:03.5]} 33... Rc4 {[%clk 0:01:10.4]} 34. Nd2 {[%clk 0:02:02.4]} 34... Rcc8
{[%clk 0:01:09.4]} 35. f4 {[%clk 0:02:02.6]} 35... exf4 {[%clk 0:01:00.3]} 36.
Bxf4 {[%clk 0:02:03.5]} 36... Rb7 {[%clk 0:01:00.3]} 37. Be3 {[%clk 0:02:00.6]}
37... d5 {[%clk 0:00:57.4]} 38. Bd4 {[%clk 0:02:00]} 38... Bc5 {[%clk
0:00:57.1]} 39. Nf3 {[%clk 0:01:57.4]} 39... Ne4 {[%clk 0:00:57.1]} 40. Rad1
{[%clk 0:01:57.5]} 40... Rd8 {[%clk 0:00:55.3]} 41. Bxc5 {[%clk 0:01:54.9]}
41... Nxc5 {[%clk 0:00:53.4]} 42. Rd4 {[%clk 0:01:52.1]} 42... Rbd7 {[%clk
0:00:48.5]} 43. Red1 {[%clk 0:01:48.4]} 43... Rd6 {[%clk 0:00:47.2]} 44. Rb4
{[%clk 0:01:44.3]} 44... Ne6 {[%clk 0:00:44.3]} 45. Nd4 {[%clk 0:01:42.2]} 45...
Nc5 {[%clk 0:00:42.3]} 46. Nf5 {[%clk 0:01:36.5]} 46... R6d7 {[%clk 0:00:39.4]}
47. Ne3 {[%clk 0:01:32.1]} 47... Rd6 {[%clk 0:00:35]} 48. Rbd4 {[%clk
0:01:29.9]} 48... Kf7 {[%clk 0:00:33]} 49. Nxd5 {[%clk 0:01:22]} 49... Nxa4
{[%clk 0:00:29.2]} 50. Rf1+ {[%clk 0:01:13.1]} 1-0

[Event "*** Titled Tuesday Blitz"]
[Site "Chess.com"]
[Date "2020.11.03"]
[Round "3"]
[White "WildTricks"]
[Black "Shota_Azaladze"]
[Result "0-1"]
[WhiteElo "2399"]
[BlackElo "2626"]
[TimeControl "180+1"]
[EndTime "10:30:04 PST"]
[Termination "Shota_Azaladze won by resignation"]

1. e4 {[%clk 0:03:00.9]} 1... g6 {[%clk 0:02:59.6]} 2. d4 {[%clk 0:03:00.1]}
2... Bg7 {[%clk 0:03:00.5]} 3. Nf3 {[%clk 0:03:00.6]} 3... c6 {[%clk 0:03:00.8]}
4. h3 {[%clk 0:02:52.4]} 4... d6 {[%clk 0:03:01.1]} 5. Bd3 {[%clk 0:02:50.3]}
5... Nf6 {[%clk 0:03:01.3]} 6. O-O {[%clk 0:02:49.6]} 6... Qc7 {[%clk
0:03:00.8]} 7. c4 {[%clk 0:02:49.5]} 7... e5 {[%clk 0:03:00.6]} 8. Nc3 {[%clk
0:02:49.2]} 8... O-O {[%clk 0:03:00.4]} 9. d5 {[%clk 0:02:46.9]} 9... c5 {[%clk
0:02:59.9]} 10. Rb1 {[%clk 0:02:45.6]} 10... h6 {[%clk 0:03:00]} 11. a3 {[%clk
0:02:45.4]} 11... Nh5 {[%clk 0:03:00]} 12. b4 {[%clk 0:02:44.8]} 12... Na6
{[%clk 0:03:00]} 13. Re1 {[%clk 0:02:30.9]} 13... Qe7 {[%clk 0:02:59.9]} 14. b5
{[%clk 0:02:21]} 14... Nb8 {[%clk 0:02:58.9]} 15. a4 {[%clk 0:02:21.1]} 15...
Nd7 {[%clk 0:02:57.9]} 16. a5 {[%clk 0:02:20.8]} 16... Kh8 {[%clk 0:02:45.6]}
17. Nh2 {[%clk 0:02:16.1]} 17... Qe8 {[%clk 0:02:43.8]} 18. Ng4 {[%clk
0:02:12.9]} 18... Kh7 {[%clk 0:02:42.8]} 19. Qd2 {[%clk 0:02:02]} 19... Nf4
{[%clk 0:02:34.1]} 20. Bc2 {[%clk 0:01:59.7]} 20... Qd8 {[%clk 0:02:28.2]} 21.
Ne2 {[%clk 0:01:58.2]} 21... h5 {[%clk 0:02:09.9]} 22. Nxf4 {[%clk 0:01:33.7]}
22... exf4 {[%clk 0:02:08.8]} 23. Nh2 {[%clk 0:01:33]} 23... Ne5 {[%clk
0:01:50.3]} 24. Qe2 {[%clk 0:00:55.7]} 24... Qh4 {[%clk 0:01:39.1]} 25. Nf3
{[%clk 0:00:52.1]} 25... Nxf3+ {[%clk 0:01:38.4]} 26. Qxf3 {[%clk 0:00:52.1]}
26... Be5 {[%clk 0:01:38.7]} 27. Bb2 {[%clk 0:00:45.8]} 27... f6 {[%clk
0:01:38.2]} 28. Bd3 {[%clk 0:00:16.3]} 28... Kg7 {[%clk 0:01:37.3]} 29. Bf1
{[%clk 0:00:15.5]} 29... Bg4 {[%clk 0:01:27.2]} 30. Qd3 {[%clk 0:00:09.5]} 30...
f3 {[%clk 0:01:17.4]} 31. Bxe5 {[%clk 0:00:08.6]} 31... fxe5 {[%clk 0:01:10.3]}
32. hxg4 {[%clk 0:00:07.3]} 32... hxg4 {[%clk 0:01:09.3]} 33. g3 {[%clk
0:00:03.9]} 33... Qh5 {[%clk 0:01:06.3]} 34. Bg2 {[%clk 0:00:02.4]} 34... fxg2
{[%clk 0:01:00.1]} 35. Kxg2 {[%clk 0:00:03.3]} 35... Qh3+ {[%clk 0:00:59.6]} 36.
Kg1 {[%clk 0:00:03.2]} 36... Rh8 {[%clk 0:00:59.9]} 37. Qf3 {[%clk 0:00:01.8]}
37... gxf3 {[%clk 0:00:59.3]} 0-1

[Event "*** Titled Tuesday Blitz"]
[Site "Chess.com"]
[Date "2020.11.03"]
[Round "3"]
[White "seorobert1971"]
[Black "Varinius"]
[Result "1-0"]
[WhiteElo "2716"]
[BlackElo "2502"]
[TimeControl "180+1"]
[EndTime "10:30:05 PST"]
[Termination "seorobert1971 won on time"]

1. e4 {[%clk 0:03:00.9]} 1... e6 {[%clk 0:03:00]} 2. d4 {[%clk 0:03:00.4]} 2...
d5 {[%clk 0:03:00.6]} 3. Nd2 {[%clk 0:03:01]} 3... c5 {[%clk 0:03:00.7]} 4. exd5
{[%clk 0:03:00.8]} 4... Qxd5 {[%clk 0:03:01.6]} 5. dxc5 {[%clk 0:03:01]} 5...
Nf6 {[%clk 0:03:01.2]} 6. Nb3 {[%clk 0:02:59.8]} 6... Qxd1+ {[%clk 0:03:00]} 7.
Kxd1 {[%clk 0:03:00.7]} 7... Nbd7 {[%clk 0:02:59.5]} 8. Be3 {[%clk 0:02:59.9]}
8... Ng4 {[%clk 0:02:57.2]} 9. Bb5 {[%clk 0:02:59.4]} 9... a6 {[%clk 0:02:52.2]}
10. Ba4 {[%clk 0:02:58]} 10... Be7 {[%clk 0:02:45.2]} 11. Nf3 {[%clk 0:02:51.2]}
11... O-O {[%clk 0:02:41.4]} 12. Bxd7 {[%clk 0:02:49.1]} 12... Bxd7 {[%clk
0:02:39.6]} 13. Bd4 {[%clk 0:02:30.7]} 13... Rfd8 {[%clk 0:02:23.4]} 14. h3
{[%clk 0:02:30]} 14... Nh6 {[%clk 0:02:22.7]} 15. Kc1 {[%clk 0:02:25.6]} 15...
Nf5 {[%clk 0:02:20.5]} 16. Bc3 {[%clk 0:02:22.1]} 16... Bc6 {[%clk 0:02:17]} 17.
Ba5 {[%clk 0:02:14.5]} 17... Rd5 {[%clk 0:02:08.3]} 18. c4 {[%clk 0:02:09.3]}
18... Rd3 {[%clk 0:02:06.5]} 19. Ne5 {[%clk 0:02:08.3]} 19... Bxg2 {[%clk
0:01:46.3]} 20. Rg1 {[%clk 0:02:07.1]} 20... Be4 {[%clk 0:01:24]} 21. Nxd3
{[%clk 0:02:05.2]} 21... Bxd3 {[%clk 0:01:24.9]} 22. Rd1 {[%clk 0:01:57]} 22...
Bxc4 {[%clk 0:01:23.1]} 23. Rd7 {[%clk 0:01:54]} 23... Bd5 {[%clk 0:01:22.2]}
24. Kc2 {[%clk 0:01:44.3]} 24... Kf8 {[%clk 0:01:20.9]} 25. Rd1 {[%clk
0:01:36.9]} 25... Ke8 {[%clk 0:01:17]} 26. R7xd5 {[%clk 0:01:36.4]} 26... exd5
{[%clk 0:01:17.1]} 27. Rxd5 {[%clk 0:01:36.8]} 27... g6 {[%clk 0:01:14.2]} 28.
Kd3 {[%clk 0:01:35.3]} 28... Rc8 {[%clk 0:01:10.6]} 29. Kc4 {[%clk 0:01:34.2]}
29... Bf6 {[%clk 0:00:59.5]} 30. Rd2 {[%clk 0:01:30.8]} 30... h5 {[%clk
0:00:57.8]} 31. Bb6 {[%clk 0:01:27.6]} 31... Bd8 {[%clk 0:00:40]} 32. Bxd8
{[%clk 0:01:12.7]} 32... Rxd8 {[%clk 0:00:40.9]} 33. Re2+ {[%clk 0:01:12.2]}
33... Kd7 {[%clk 0:00:39]} 34. Nd4 {[%clk 0:00:56.1]} 34... Nxd4 {[%clk
0:00:26.4]} 35. Kxd4 {[%clk 0:00:55.9]} 35... Kc6+ {[%clk 0:00:26.4]} 36. Kc4
{[%clk 0:00:56.4]} 1-0

[Event "*** Titled Tuesday Blitz"]
[Site "Chess.com"]
[Date "2020.11.03"]
[Round "3"]
[White "AlexSuv"]
[Black "TigrVShlyape"]
[Result "0-1"]
[WhiteElo "2588"]
[BlackElo "2901"]
[TimeControl "180+1"]
[EndTime "10:30:08 PST"]
[Termination "TigrVShlyape won by resignation"]

1. d4 {[%clk 0:03:00.9]} 1... Nf6 {[%clk 0:02:56.3]} 2. c4 {[%clk 0:02:59.7]}
2... g6 {[%clk 0:02:54.4]} 3. Nc3 {[%clk 0:02:55]} 3... Bg7 {[%clk 0:02:53.5]}
4. e4 {[%clk 0:02:51.8]} 4... d6 {[%clk 0:02:52.7]} 5. Nf3 {[%clk 0:02:51.3]}
5... O-O {[%clk 0:02:49.4]} 6. Be2 {[%clk 0:02:51.4]} 6... e5 {[%clk 0:02:49.4]}
7. Be3 {[%clk 0:02:51]} 7... Ng4 {[%clk 0:02:47.2]} 8. Bg5 {[%clk 0:02:51.2]}
8... f6 {[%clk 0:02:46.6]} 9. Bh4 {[%clk 0:02:51.6]} 9... Nc6 {[%clk 0:02:42]}
10. d5 {[%clk 0:02:45.7]} 10... Ne7 {[%clk 0:02:34.6]} 11. Nd2 {[%clk
0:02:45.7]} 11... Nh6 {[%clk 0:02:30.8]} 12. f3 {[%clk 0:02:39.5]} 12... g5
{[%clk 0:02:28.1]} 13. Bf2 {[%clk 0:02:38.4]} 13... f5 {[%clk 0:02:28.5]} 14.
exf5 {[%clk 0:02:29.2]} 14... Nhxf5 {[%clk 0:02:27.4]} 15. Nde4 {[%clk
0:02:28.9]} 15... Ng6 {[%clk 0:02:26.7]} 16. O-O {[%clk 0:02:23.6]} 16... Nd4
{[%clk 0:02:23]} 17. Bd3 {[%clk 0:02:20]} 17... Nf4 {[%clk 0:02:22]} 18. Ne2
{[%clk 0:02:08.4]} 18... Ndxe2+ {[%clk 0:02:00.5]} 19. Bxe2 {[%clk 0:02:07.7]}
19... Bf5 {[%clk 0:02:00.6]} 20. Bd3 {[%clk 0:02:00.1]} 20... Nxd3 {[%clk
0:01:53.9]} 21. Qxd3 {[%clk 0:01:59.8]} 21... b6 {[%clk 0:01:53.3]} 22. h3
{[%clk 0:01:58.7]} 22... h6 {[%clk 0:01:51.2]} 23. Rfe1 {[%clk 0:01:35.1]} 23...
a5 {[%clk 0:01:49.6]} 24. b3 {[%clk 0:01:32.3]} 24... Qe8 {[%clk 0:01:48.3]} 25.
Rac1 {[%clk 0:01:29.7]} 25... Qg6 {[%clk 0:01:46.5]} 26. Be3 {[%clk 0:01:27.1]}
26... h5 {[%clk 0:01:41.5]} 27. Bd2 {[%clk 0:00:52.6]} 27... g4 {[%clk
0:01:38.9]} 28. Kh2 {[%clk 0:00:37.2]} 28... Rf7 {[%clk 0:01:31.8]} 29. Re2
{[%clk 0:00:33.9]} 29... Raf8 {[%clk 0:01:30.2]} 30. Rg1 {[%clk 0:00:34.1]}
30... Bh6 {[%clk 0:01:27.9]} 31. Bxh6 {[%clk 0:00:33.4]} 31... Qxh6 {[%clk
0:01:26.1]} 32. Qe3 {[%clk 0:00:33]} 32... Qg6 {[%clk 0:01:19.7]} 33. fxg4
{[%clk 0:00:26.3]} 33... hxg4 {[%clk 0:01:18.2]} 34. h4 {[%clk 0:00:26.6]} 34...
Bxe4 {[%clk 0:01:07]} 35. Qxe4 {[%clk 0:00:26.7]} 35... Qh5 {[%clk 0:01:05.6]}
36. g3 {[%clk 0:00:20.9]} 36... Rf3 {[%clk 0:01:05.2]} 37. Rgg2 {[%clk 0:00:16]}
37... Kg7 {[%clk 0:01:04.9]} 38. Rc2 {[%clk 0:00:14.6]} 38... Qg6 {[%clk
0:01:02]} 39. Qxg6+ {[%clk 0:00:13.8]} 39... Kxg6 {[%clk 0:01:02.3]} 40. Rge2
{[%clk 0:00:12.5]} 40... Rd3 {[%clk 0:00:59.4]} 41. Re4 {[%clk 0:00:12]} 41...
Kh5 {[%clk 0:00:57.9]} 42. Kg2 {[%clk 0:00:11.2]} 42... Rff3 {[%clk 0:00:57.3]}
0-1